fUST/lending_fUST_20240828
["ID","MTS","AMOUNT","RATE_DAILY","PERIOD"]
[336418482,1724819445991,-500.0,0.0001178,2]
[336418484,1724819446000,-500.0,0.0001178,2]
[336418486,1724819446009,-500.0,0.0001178,2]
[336418488,1724819446019,-500.0,0.0001178,2]
[336418490,1724819446029,-500.0,0.0001178,2]
[336418492,1724819446038,-500.0,0.0001178,2]
[336418494,1724819446048,-500.0,0.0001178,2]
[336418496,1724819446057,-561.59,0.0001178,2]
[336418498,1724819446066,-327.90010363,0.0001178,2]
[336418500,1724819446075,-500.0,0.0001178,2]
[336418502,1724819446087,-166.44,0.0001178,2]
[336418504,1724819446097,-366.38125659,0.0001178,2]
[336418506,1724819446107,-500.0,0.0001178,2]
[336418508,1724819446116,-167.9,0.0001178,2]
[336418510,1724819446126,-500.0,0.0001178,2]
[336418512,1724819446135,-162.70529747,0.0001178,2]
[336418514,1724819446145,-596.95587818,0.0001178,2]
[336418516,1724819446154,-500.0,0.0001178,2]
[336418518,1724819446164,-500.0,0.0001178,2]
[336418520,1724819446173,-500.0,0.0001178,2]
[336418522,1724819446183,-500.0,0.0001178,2]
[336418524,1724819446193,-502.17748487,0.0001178,2]
[336418526,1724819446204,-500.0,0.0001178,2]
[336418528,1724819446216,-1115.71,0.0001178,2]
[336418530,1724819446226,-525.66,0.0001178,2]
[336418532,1724819446236,-400.96863812,0.0001178,2]
[336418534,1724819446246,-527.03,0.0001178,2]
[336418536,1724819446255,-500.0,0.0001178,2]
[336418538,1724819446265,-500.0,0.0001178,2]
[336418540,1724819446275,-502.69517344,0.0001178,2]
[336418543,1724819446286,-500.0,0.0001178,2]
[336418545,1724819446299,-546.74,0.0001178,2]
[336418547,1724819446309,-500.0,0.0001178,2]
[336418549,1724819446318,-500.0,0.0001178,2]
[336418551,1724819446329,-500.0,0.0001178,2]
[336418553,1724819446342,-856.36,0.0001178,2]
[336418555,1724819446354,-3124.85,0.0001178,2]
[336418558,1724819446365,-500.0,0.0001178,2]
[336418560,1724819446376,-500.0,0.0001178,2]
[336418562,1724819446388,-500.0,0.0001178,2]
[336418563,1724819446398,-500.0,0.0001178,2]
[336418564,1724819446408,-276.82,0.0001178,2]
[336418565,1724819446419,-1509.14,0.0001178,2]
[336418566,1724819446429,-500.0,0.0001178,2]
[336418567,1724819446439,-500.0,0.0001178,2]
[336418568,1724819446450,-768.26,0.0001178,2]
[336418569,1724819446462,-868.72,0.0001178,2]
[336418570,1724819446472,-500.0,0.0001178,2]
[336418571,1724819446482,-500.0,0.0001178,2]
[336418572,1724819446492,-348.82455249,0.0001178,2]
[336418573,1724819446502,-289.61,0.0001178,2]
[336418574,1724819446511,-500.0,0.0001178,2]
[336418575,1724819446521,-230.73633879,0.0001178,2]
[336418576,1724819446530,-235.56467934,0.0001178,2]
[336418577,1724819446541,-500.0,0.0001178,2]
[336418578,1724819446550,-500.0,0.0001178,2]
[336418579,1724819446560,-500.0,0.0001178,2]
[336418580,1724819446570,-1176.67,0.0001178,2]
[336418581,1724819446579,-462.4,0.0001178,2]
[336418582,1724819446590,-500.0,0.0001178,2]
[336418583,1724819446599,-500.0,0.0001178,2]
[336418584,1724819446608,-500.0,0.0001178,2]
[336418585,1724819446618,-500.0,0.0001178,2]
[336418586,1724819446627,-1567.17,0.0001178,2]
[336418587,1724819446637,-850.91,0.0001178,2]
[336418588,1724819446646,-931.43,0.0001178,2]
[336418589,1724819446655,-315.07148259,0.0001178,2]
[336418590,1724819446665,-500.0,0.0001178,2]
[336418591,1724819446675,-500.0,0.0001178,2]
[336418592,1724819446684,-8351.1,0.0001178,2]
[336418593,1724819446693,-500.0,0.0001178,2]
[336418594,1724819446703,-500.0,0.0001178,2]
[336418595,1724819446712,-500.0,0.0001178,2]
[336418596,1724819446724,-243.19777595,0.0001178,2]
[336418598,1724819446734,-500.0,0.0001178,2]
[336418600,1724819446743,-331.06084156,0.0001178,2]
[336418602,1724819446753,-186.57,0.0001178,2]
[336418604,1724819446762,-180.95755433,0.00011842,2]
[336418606,1724819446771,-500.0,0.00011873,2]
[336418608,1724819446781,-500.0,0.00011873,2]
[336418610,1724819446790,-154.98088165,0.00011894,2]
[336418611,1724819446800,-281.28550327,0.00011894,2]
[336418613,1724819446810,-665.33,0.00011899,2]
[336418615,1724819446820,-665.33,0.00011899,2]
[336418618,1724819446831,-665.33,0.00011899,2]
[336418620,1724819446842,-665.33,0.00011899,2]
[336418621,1724819446851,-665.33,0.00011899,2]
[336418623,1724819446861,-665.33,0.00011899,2]
[336418626,1724819446871,-665.33,0.00011899,2]
[336418628,1724819446881,-665.33,0.00011899,2]
[336418630,1724819446890,-665.33,0.00011899,2]
[336418632,1724819446900,-665.33,0.00011899,2]
[336418634,1724819446910,-665.33,0.00011899,2]
[336418636,1724819446919,-665.33,0.00011899,2]
[336418638,1724819446929,-665.36877129,0.00011899,2]
[336418640,1724819446938,-12976.35681957,0.000119,5]
[336418642,1724819446948,-634866.136015,0.000119,2]
[336418644,1724819446958,-7985.02986348,0.00011987,2]
[336418646,1724819446967,-154.8527386,0.00011999,2]
[336418648,1724819446977,-265.94339308,0.00011999,2]
[336418650,1724819446986,-2173.64260751,0.0001201,2]
[336418651,1724819446996,-500.0,0.00012054,2]
[336418652,1724819447005,-500.0,0.00012054,2]
[336418653,1724819447014,-500.0,0.00012054,2]
[336418654,1724819447023,-514.99308148,0.00012054,2]
[336418655,1724819447032,-628.6353143,0.00012054,2]
[336418656,1724819447041,-500.0,0.00012054,2]
[336418657,1724819447050,-500.0,0.00012054,2]
[336418658,1724819447059,-500.0,0.00012054,2]
[336418659,1724819447068,-500.0,0.00012054,2]
[336418661,1724819447077,-500.0,0.00012054,2]
[336418662,1724819447090,-500.0,0.00012054,2]
[336418664,1724819447100,-1115.71,0.00012054,2]
[336418666,1724819447110,-525.66,0.00012054,2]
[336418667,1724819447120,-500.0,0.00012054,2]
[336418668,1724819447129,-228.78,0.00012054,2]
[336418669,1724819447142,-500.0,0.00012054,2]
[336418670,1724819447151,-546.74,0.00012054,2]
[336418671,1724819447161,-500.0,0.00012054,2]
[336418672,1724819447170,-500.0,0.00012054,2]
[336418673,1724819447180,-856.36,0.00012054,2]
[336418674,1724819447189,-3124.85,0.00012054,2]
[336418675,1724819447198,-178.15,0.00012054,2]
[336418676,1724819447208,-520.52677227,0.00012054,2]
[336418677,1724819447217,-175.06826955,0.00012054,2]
[336418678,1724819447226,-1509.14,0.00012054,2]
[336418679,1724819447235,-608.20355027,0.00012054,2]
[336418680,1724819447245,-768.26,0.00012054,2]
[336418681,1724819447255,-868.72,0.00012054,2]
[336418682,1724819447264,-500.0,0.00012054,2]
[336418683,1724819447273,-500.0,0.00012054,2]
[336418684,1724819447283,-500.0,0.00012054,2]
[336418685,1724819447293,-500.0,0.00012054,2]
[336418686,1724819447302,-500.0,0.00012054,2]
[336418687,1724819447312,-1176.67,0.00012054,2]
[336418688,1724819447322,-500.0,0.00012054,2]
[336418689,1724819447331,-374.05,0.00012054,2]
[336418690,1724819447353,-500.0,0.00012054,2]
[336418691,1724819447363,-500.0,0.00012054,2]
[336418692,1724819447374,-1567.17,0.00012054,2]
[336418693,1724819447384,-850.91,0.00012054,2]
[336418694,1724819447393,-931.43,0.00012054,2]
[336418695,1724819447403,-500.0,0.00012054,2]
[336418696,1724819447413,-500.0,0.00012054,2]
[336418697,1724819447423,-8351.1,0.00012054,2]
[336418698,1724819447432,-500.0,0.00012054,2]
[336418699,1724819447441,-421.51741703,0.00012054,2]
[336418701,1724819447451,-500.0,0.00012054,2]
[336418703,1724819447460,-306.11928284,0.00012054,2]
[336418705,1724819447470,-7019.64469415,0.00012163,2]
[336418707,1724819447481,-154.57491897,0.00012163,2]
[336418708,1724819447490,-154.81078475,0.00012163,2]
[336418710,1724819447499,-500.0,0.00012328,2]
[336418712,1724819447509,-500.0,0.00012328,2]
[336418714,1724819447520,-500.0,0.00012328,2]
[336418716,1724819447529,-592.18,0.00012328,2]
[336418718,1724819447539,-500.0,0.00012328,2]
[336418720,1724819447548,-500.0,0.00012328,2]
[336418721,1724819447558,-1115.71,0.00012328,2]
[336418723,1724819447567,-525.66,0.00012328,2]
[336418725,1724819447577,-500.0,0.00012328,2]
[336418727,1724819447587,-427.77966793,0.00012328,2]
[336418729,1724819447596,-546.74,0.00012328,2]
[336418730,1724819447606,-500.0,0.00012328,2]
[336418732,1724819447616,-500.0,0.00012328,2]
[336418734,1724819447625,-856.36,0.00012328,2]
[336418736,1724819447634,-3124.85,0.00012328,2]
[336418738,1724819447644,-1166.87175446,0.00012328,2]
[336418739,1724819447784,-342.26824554,0.00012328,2]
[336418740,1724819447793,-768.26,0.00012328,2]
[336418742,1724819447804,-868.72,0.00012328,2]
[336418744,1724819447813,-500.0,0.00012328,2]
[336418746,1724819447823,-604.15264413,0.00012328,2]
[336418748,1724819447832,-337.81,0.00012328,2]
[336418750,1724819447842,-500.0,0.00012328,2]
[336418752,1724819447855,-1176.67,0.00012328,2]
[336418754,1724819447864,-500.0,0.00012328,2]
[336418756,1724819447875,-500.0,0.00012328,2]
[336418758,1724819447885,-500.0,0.00012328,2]
[336418759,1724819447895,-1567.17,0.00012328,2]
[336418760,1724819447907,-850.91,0.00012328,2]
[336418761,1724819447919,-931.43,0.00012328,2]
[336418762,1724819447929,-248.80021354,0.00012328,2]
[336418763,1724819447939,-8351.1,0.00012328,2]
[336418764,1724819447950,-330.0848529,0.00012328,2]
[336418765,1724819447960,-500.0,0.00012328,2]
[336418766,1724819447970,-3536.30573328,0.00012365,2]
[336418789,1724819448180,-197.51960085,0.00010551,2]
[336418791,1724819448192,-232.15947238,0.00010958,2]
[336418793,1724819448206,-267.84052762,0.00010958,2]
[336418795,1724819448217,-4889.23274722,0.00012365,2]
[336418797,1724819448227,-600.0,0.00012389,2]
[336418799,1724819448237,-600.0,0.00012389,2]
[336418801,1724819448247,-172.13390552,0.00012419,2]
[336418802,1724819448256,-1000.0,0.00012421,2]
[336418804,1724819448266,-1000.0,0.00012421,2]
[336418806,1724819448276,-166.52288171,0.00012516,2]
[336418808,1724819448286,-586.82416182,0.00012516,2]
[336418810,1724819448296,-2715.06569498,0.00012516,2]
[336418812,1724819448306,-1614.89424895,0.00012516,2]
[336418814,1724819448317,-500.0,0.00012602,2]
[336418816,1724819448327,-500.0,0.00012602,2]
[336418818,1724819448337,-500.0,0.00012602,2]
[336418820,1724819448347,-500.0,0.00012602,2]
[336418822,1724819448357,-500.0,0.00012602,2]
[336418824,1724819448367,-1115.71,0.00012602,2]
[336418826,1724819448379,-546.74,0.00012602,2]
[336418828,1724819448390,-500.0,0.00012602,2]
[336418829,1724819448402,-500.0,0.00012602,2]
[336418830,1724819448411,-856.36,0.00012602,2]
[336418831,1724819448421,-3124.85,0.00012602,2]
[336418832,1724819448430,-1509.14,0.00012602,2]
[336418833,1724819448440,-768.26,0.00012602,2]
[336418834,1724819448451,-868.72,0.00012602,2]
[336418835,1724819448460,-500.0,0.00012602,2]
[336418836,1724819448471,-500.0,0.00012602,2]
[336418837,1724819448482,-1176.67,0.00012602,2]
[336418838,1724819448493,-500.0,0.00012602,2]
[336418839,1724819448504,-500.0,0.00012602,2]
[336418840,1724819448515,-500.0,0.00012602,2]
[336418841,1724819448526,-1567.17,0.00012602,2]
[336418842,1724819448536,-850.91,0.00012602,2]
[336418843,1724819448546,-931.43,0.00012602,2]
[336418844,1724819448556,-8351.1,0.00012602,2]
[336418845,1724819448566,-600.0,0.00012714,2]
[336418846,1724819448576,-600.0,0.00012756,2]
[336418847,1724819448585,-672.18127143,0.00012782,2]
[336418848,1724819448595,-187.90917654,0.00012789,2]
[336418849,1724819448606,-2300.48563084,0.00012789,2]
[336418850,1724819448617,-1527.86668033,0.00012789,2]
[336418851,1724819448627,-717.2402363,0.00012789,2]
[336418852,1724819448636,-500.0,0.00012876,2]
[336418853,1724819448646,-523.92416625,0.00012876,2]
[336418855,1724819448656,-500.0,0.00012876,2]
[336418856,1724819448666,-500.0,0.00012876,2]
[336418858,1724819448679,-1115.71,0.00012876,2]
[336418860,1724819448691,-546.74,0.00012876,2]
[336418862,1724819448700,-500.0,0.00012876,2]
[336418865,1724819448711,-500.0,0.00012876,2]
[336418867,1724819448724,-856.36,0.00012876,2]
[336418869,1724819448738,-3124.85,0.00012876,2]
[336418871,1724819448751,-1509.14,0.00012876,2]
[336418874,1724819448761,-768.26,0.00012876,2]
[336418875,1724819448771,-868.72,0.00012876,2]
[336418877,1724819448783,-500.0,0.00012876,2]
[336418879,1724819448793,-500.0,0.00012876,2]
[336418881,1724819448804,-1176.67,0.00012876,2]
[336418883,1724819448814,-500.0,0.00012876,2]
[336418885,1724819448825,-500.0,0.00012876,2]
[336418887,1724819448835,-500.0,0.00012876,2]
[336418889,1724819448845,-1567.17,0.00012876,2]
[336418891,1724819448857,-850.91,0.00012876,2]
[336418893,1724819448868,-931.43,0.00012876,2]
[336418895,1724819448878,-8351.1,0.00012876,2]
[336418897,1724819448888,-768.168532,0.00012877,2]
[336418899,1724819448898,-223.73028006,0.00012898,2]
[336418901,1724819448907,-422.69720013,0.00012898,2]
[336418902,1724819448917,-3996.17480788,0.000129,2]
[336418904,1724819448926,-5278.47122978,0.000129,2]
[336418906,1724819448936,-535.33512,0.00012934,2]
[336418908,1724819448946,-174.99644935,0.00012934,2]
[336418909,1724819448957,-600.0,0.00012939,2]
[336418911,1724819448967,-521.16131332,0.00012971,2]
[336418913,1724819448977,-777.0011055,0.00012971,2]
[336418914,1724819448987,-404.8069796,0.00012971,2]
[336418915,1724819448997,-695.42593632,0.00012971,2]
[336418916,1724819449009,-154.57491897,0.00012971,2]
[336418917,1724819449020,-493.77204427,0.00012985,2]
[336418918,1724819449029,-210.43217369,0.00012985,2]
[336418919,1724819449039,-493.77204427,0.00012985,2]
[336418920,1724819449048,-154.74467129,0.00012991,2]
[336418921,1724819449058,-544.51359376,0.00012991,2]
[336418922,1724819449067,-157.24081456,0.00012991,2]
[336418923,1724819449077,-708.47113529,0.00012998,2]
[336418924,1724819449087,-863.27824545,0.00013,2]
[336418925,1724819449097,-337.13775619,0.00013,2]
[336418926,1724819449107,-52216.5094061,0.00013,2]
[336418927,1724819449117,-500.0,0.0001315,2]
[336418928,1724819449128,-500.0,0.0001315,2]
[336418929,1724819449137,-500.0,0.0001315,2]
[336418930,1724819449147,-1115.71,0.0001315,2]
[336418931,1724819449156,-546.74,0.0001315,2]
[336418932,1724819449166,-403.73990581,0.0001315,2]
[336418933,1724819449176,-500.0,0.0001315,2]
[336418934,1724819449185,-856.36,0.0001315,2]
[336418935,1724819449195,-3124.85,0.0001315,2]
[336418936,1724819449204,-1509.14,0.0001315,2]
[336418937,1724819449214,-768.26,0.0001315,2]
[336418938,1724819449224,-868.72,0.0001315,2]
[336418939,1724819449233,-500.0,0.0001315,2]
[336418940,1724819449243,-500.0,0.0001315,2]
[336418941,1724819449253,-1176.67,0.0001315,2]
[336418942,1724819449263,-500.0,0.0001315,2]
[336418943,1724819449274,-500.0,0.0001315,2]
[336418944,1724819449284,-500.0,0.0001315,2]
[336418945,1724819449294,-1567.17,0.0001315,2]
[336418946,1724819449304,-850.91,0.0001315,2]
[336418947,1724819449315,-931.43,0.0001315,2]
[336418948,1724819449325,-8351.1,0.0001315,2]
[336418949,1724819449336,-600.0,0.00013267,2]
[336418950,1724819449545,-600.0,0.00013287,2]
[336418951,1724819449555,-600.0,0.00013287,2]
[336418952,1724819449564,-600.0,0.00013287,2]
[336418953,1724819449576,-600.0,0.00013288,2]
[336418954,1724819449586,-500.0,0.00013424,2]
[336418955,1724819449597,-500.0,0.00013424,2]
[336418956,1724819449606,-500.0,0.00013424,2]
[336418957,1724819449617,-1115.71,0.00013424,2]
[336418958,1724819449628,-546.74,0.00013424,2]
[336418959,1724819449638,-500.0,0.00013424,2]
[336418960,1724819449648,-560.73701413,0.00013424,2]
[336418961,1724819449705,-295.62298587,0.00013424,2]
[336418962,1724819449715,-3124.85,0.00013424,2]
[336418963,1724819449729,-904.16286288,0.00013424,2]
[336418964,1724819449741,-604.97713712,0.00013424,2]
[336418965,1724819449751,-768.26,0.00013424,2]
[336418966,1724819449760,-868.72,0.00013424,2]
[336418967,1724819449770,-500.0,0.00013424,2]
[336418968,1724819449780,-500.0,0.00013424,2]
[336418969,1724819449790,-1176.67,0.00013424,2]
[336418970,1724819449800,-500.0,0.00013424,2]
[336418971,1724819449810,-500.0,0.00013424,2]
[336418973,1724819449819,-500.0,0.00013424,2]
[336418975,1724819449828,-1567.17,0.00013424,2]
[336418977,1724819449839,-850.91,0.00013424,2]
[336418979,1724819449848,-931.43,0.00013424,2]
[336418981,1724819449858,-8351.1,0.00013424,2]
[336418982,1724819449867,-8425.5384805,0.00013598,2]
[336418984,1724819449877,-532.93628081,0.00013698,2]
[336418986,1724819449886,-500.0,0.00013698,2]
[336418988,1724819449895,-532.93628081,0.00013698,2]
[336418990,1724819449904,-532.93628081,0.00013698,2]
[336418992,1724819449913,-532.93628081,0.00013698,2]
[336418994,1724819449922,-532.93628081,0.00013698,2]
[336418996,1724819449932,-532.93628081,0.00013698,2]
[336418998,1724819449942,-500.0,0.00013698,2]
[336419001,1724819449953,-532.93628081,0.00013698,2]
[336419002,1724819449963,-515.23081175,0.00013698,2]
[336419004,1724819449974,-532.93628081,0.00013698,2]
[336419006,1724819449985,-532.93628081,0.00013698,2]
[336419009,1724819449997,-532.93628081,0.00013698,2]
[336419011,1724819450008,-532.93628081,0.00013698,2]
[336419013,1724819450017,-532.93628081,0.00013698,2]
[336419015,1724819450026,-532.93628081,0.00013698,2]
[336419017,1724819450035,-532.93628081,0.00013698,2]
[336419019,1724819450044,-532.93628081,0.00013698,2]
[336419021,1724819450057,-532.93628081,0.00013698,2]
[336419023,1724819450067,-532.93628081,0.00013698,2]
[336419025,1724819450078,-532.93628081,0.00013698,2]
[336419027,1724819450089,-152.46825051,0.00013698,2]
[336419029,1724819450098,-229.82665384,0.00013698,2]
[336419031,1724819450107,-197.64227645,0.00013698,2]
[336419033,1724819450117,-173.16726271,0.00013698,2]
[336419035,1724819450127,-435.97715689,0.00013698,2]
[336419037,1724819450136,-983.67721478,0.00013698,2]
[336419039,1724819450145,-983.67721478,0.00013698,2]
[336419041,1724819450155,-983.67721478,0.00013698,2]
[336419043,1724819450164,-983.67721478,0.00013698,2]
[336419044,1724819450173,-983.67721478,0.00013698,2]
[336419045,1724819450182,-983.67721478,0.00013698,2]
[336419046,1724819450201,-983.67721478,0.00013698,2]
[336419047,1724819450212,-983.67721478,0.00013698,2]
[336419048,1724819450222,-983.67721478,0.00013698,2]
[336419049,1724819450232,-983.67721478,0.00013698,2]
[336419050,1724819450242,-500.0,0.00013698,2]
[336419051,1724819450251,-500.0,0.00013698,2]
[336419052,1724819450261,-500.0,0.00013698,2]
[336419053,1724819450271,-1115.71,0.00013698,2]
[336419054,1724819450281,-546.74,0.00013698,2]
[336419056,1724819450290,-500.0,0.00013698,2]
[336419057,1724819450299,-856.36,0.00013698,2]
[336419059,1724819450309,-3124.85,0.00013698,2]
[336419061,1724819450319,-1509.14,0.00013698,2]
[336419064,1724819450330,-768.26,0.00013698,2]
[336419066,1724819450342,-868.72,0.00013698,2]
[336419068,1724819450352,-500.0,0.00013698,2]
[336419070,1724819450361,-500.0,0.00013698,2]
[336419072,1724819450371,-1176.67,0.00013698,2]
[336419074,1724819450382,-526.01,0.00013698,2]
[336419076,1724819450393,-500.0,0.00013698,2]
[336419078,1724819450402,-500.0,0.00013698,2]
[336419080,1724819450412,-1567.17,0.00013698,2]
[336419083,1724819450422,-850.91,0.00013698,2]
[336419085,1724819450431,-931.43,0.00013698,2]
[336419087,1724819450441,-8351.1,0.00013698,2]
[336419089,1724819450450,-382.293585,0.00013699,2]
[336419091,1724819450460,-3000.0,0.00013699,2]
[336419093,1724819450469,-500.0,0.00013699,2]
[336419095,1724819450478,-500.0,0.00013699,2]
[336419097,1724819450488,-500.0,0.00013699,2]
[336419099,1724819450498,-500.0,0.00013699,2]
[336419101,1724819450508,-500.0,0.00013699,2]
[336419103,1724819450517,-500.0,0.00013699,2]
[336419105,1724819450526,-500.0,0.00013699,2]
[336419107,1724819450536,-500.0,0.00013699,2]
[336419109,1724819450545,-500.0,0.00013699,2]
[336419111,1724819450554,-500.0,0.00013699,2]
[336419113,1724819450564,-500.0,0.00013699,2]
[336419115,1724819450573,-500.0,0.00013699,2]
[336419117,1724819450583,-500.0,0.00013699,2]
[336419119,1724819450596,-500.0,0.00013699,2]
[336419121,1724819450606,-500.0,0.00013699,2]
[336419123,1724819450616,-500.0,0.00013699,2]
[336419125,1724819450625,-500.0,0.00013699,2]
[336419127,1724819450634,-500.0,0.00013699,2]
[336419129,1724819450644,-500.0,0.00013699,2]
[336419131,1724819450653,-500.0,0.00013699,2]
[336419133,1724819450665,-500.0,0.00013699,2]
[336419135,1724819450674,-500.0,0.00013699,2]
[336419137,1724819450684,-500.0,0.00013699,2]
[336419139,1724819450693,-500.0,0.00013699,2]
[336419141,1724819450702,-500.0,0.00013699,2]
[336419144,1724819450712,-500.0,0.00013699,2]
[336419146,1724819450724,-500.0,0.00013699,2]
[336419148,1724819450734,-500.0,0.00013699,2]
[336419150,1724819450743,-500.0,0.00013699,2]
[336419152,1724819450753,-215.16773244,0.00013699,2]
[336419154,1724819450762,-500.0,0.00013699,2]
[336419156,1724819450773,-500.0,0.00013699,2]
[336419158,1724819450782,-384.06,0.00013972,2]
[336419160,1724819450791,-500.0,0.00013972,2]
[336419162,1724819450801,-587.87,0.00013972,2]
[336419164,1724819450812,-1115.71,0.00013972,2]
[336419166,1724819450821,-546.74,0.00013972,2]
[336419168,1724819450830,-500.0,0.00013972,2]
[336419170,1724819450848,-856.36,0.00013972,2]
[336419172,1724819450859,-3124.85,0.00013972,2]
[336419174,1724819450869,-1509.14,0.00013972,2]
[336419176,1724819450878,-768.26,0.00013972,2]
[336419178,1724819450890,-868.72,0.00013972,2]
[336419180,1724819450899,-560.08,0.00013972,2]
[336419182,1724819450909,-1176.67,0.00013972,2]
[336419184,1724819450919,-500.0,0.00013972,2]
[336419186,1724819450929,-500.0,0.00013972,2]
[336419188,1724819450940,-1567.17,0.00013972,2]
[336419191,1724819450951,-850.91,0.00013972,2]
[336419193,1724819450960,-931.43,0.00013972,2]
[336419195,1724819450970,-438.36691643,0.00013972,2]
[336419232,1724819451333,-500.0,0.00010958,2]
[336419234,1724819451344,-500.0,0.00010958,2]
[336419236,1724819451353,-500.0,0.00011232,2]
[336419238,1724819451362,-500.0,0.00011232,2]
[336419241,1724819451375,-500.0,0.00011506,2]
[336419243,1724819451384,-154.57491897,0.00011712,2]
[336419245,1724819451394,-500.0,0.0001178,2]
[336419247,1724819451404,-500.0,0.00012054,2]
[336419249,1724819451414,-500.0,0.00012328,2]
[336419251,1724819451424,-604.58,0.00012602,2]
[336419253,1724819451434,-3095.48272537,0.00012782,2]
[336419255,1724819451443,-221.96824703,0.00012782,2]
[336419257,1724819451454,-6361.98517793,0.00013972,2]
[336419259,1724819451467,-264.46625028,0.00013972,2]
[336419262,1724819451480,-1286.28165536,0.00013972,2]
[336419264,1724819451492,-324.0,0.00014,2]
[336419266,1724819451502,-257.16283236,0.00014161,2]
[336419277,1724819451862,-434.26649374,9.9e-05,2]
[336419282,1724819451902,-22.95073889,9.9e-05,2]
[336419317,1724819911659,96429.46272317,0.00025,120]
[336419322,1724820007831,4059.57537781,0.00011506,10]
[336419326,1724820434146,-1161.450199,7.745e-05,2]
[336419327,1724820434170,-168.60075,7.833e-05,2]
[336419328,1724820434192,-168.60075,7.891e-05,2]
[336419329,1724820434214,-1768.0013112,7.911e-05,2]
[336419330,1724820434236,-422.69720013,7.911e-05,2]
[336419331,1724820434257,-168.60075,7.95e-05,2]
[336419332,1724820434280,-168.60075,8.008e-05,2]
[336419333,1724820434304,-168.60075,8.066e-05,2]
[336419334,1724820434332,-168.60075,8.125e-05,2]
[336419335,1724820434355,-168.60075,8.183e-05,2]
[336419336,1724820434384,-168.60075,8.241e-05,2]
[336419337,1724820434406,-300.0,8.52e-05,2]
[336419338,1724820434428,-300.0,8.52e-05,2]
[336419339,1724820434452,-1795.77354339,8.521e-05,2]
[336419340,1724820434481,-841.28526216,8.521e-05,2]
[336419341,1724820438106,-1079.07008761,8.521e-05,2]
[336419343,1724820507986,-964.66445825,8.416e-05,2]
[336419345,1724820508029,-964.66445825,8.416e-05,2]
[336419348,1724820532985,-1003.25103658,8.416e-05,2]
[336419350,1724820533037,-654.31370842,8.416e-05,2]
[336419352,1724820533107,-1003.25103658,8.416e-05,2]
[336419356,1724820549166,-300.0,8.415e-05,2]
[336419357,1724820549193,-300.0,8.415e-05,2]
[336419358,1724820549218,-265.03067684,8.416e-05,2]
[336419359,1724820549240,-20309.85530192,8.416e-05,2]
[336419360,1724820549261,-3303.51580099,8.521e-05,2]
[336419361,1724820549282,-2780.72915183,8.521e-05,2]
[336419362,1724820549303,-7985.02986348,8.521e-05,2]
[336419363,1724820549325,-3095.48272537,8.521e-05,2]
[336419364,1724820549347,-1368.51743381,8.532e-05,2]
[336419365,1724820549369,-174.99644935,8.793e-05,2]
[336419366,1724820549392,-154.74467129,8.793e-05,2]
[336419367,1724820549416,-157.24081456,8.861e-05,2]
[336419368,1724820549441,-210.43217369,8.861e-05,2]
[336419369,1724820549462,-544.51359376,8.861e-05,2]
[336419370,1724820549486,-178.71942478,8.883e-05,2]
[336419371,1724820549507,-520.93310864,8.883e-05,2]
[336419372,1724820549529,-695.42593632,8.883e-05,2]
[336419373,1724820549551,-420.0,9.257e-05,2]
[336419374,1724820549572,-420.0,9.257e-05,2]
[336419375,1724820549593,-154.8527386,9.524e-05,2]